Cogmind - Beta 10.2 @@@ ROGUE MODE // 2021.11.27 @ 14:37:41 Player: BigP Result: Self-destructed Performance ------------- Evolutions (1) 500 Regions Visited (3) 600 Robots Destroyed (11) 55 Value Destroyed (325) 325 Prototype IDs (4) 80 Alien Tech Used (0) 0 Bonus (0) 0 TOTAL SCORE: 1560 Bonus ------- None Cogmind --------- Core Integrity 280/400 Matter 300/300 Energy 100/100 System Corruption 0% Temperature Cool (0) Movement Treading (160) Location -9/Storage Parts ------- > --- POWER (1) -------- (None) > --- PROPULSION (2) --- Light Treads Improved Treads > --- UTILITY (2) ------ Medium Storage Unit > --- WEAPON (4) ------- Hammer Hammer Hammer Hammer > --- INVENTORY (8) ---- Ion Engine Light Treads Light Treads Small Storage Unit Light Armor Plating Peak State ------------ > --- POWER ------------ Improved Ion Engine > --- PROPULSION ------- Improved Flight Unit Improved Flight Unit > --- UTILITY ---------- Medium Storage Unit Transport Network Coupler > --- WEAPON ----------- Hammer Hammer Hammer Hammer > --- INVENTORY -------- Ion Engine Light Treads Light Treads Light Treads Improved Treads Small Storage Unit Light Armor Plating [Rating: 14] Favorites ----------- Power Ion Engine Engine Ion Engine Propulsion Light Treads Treads Light Treads Flight Unit Improved Flight Unit Utility Medium Storage Unit Device Heat Sink Storage Medium Storage Unit Processor Transport Network Coupler Protection Light Armor Plating Weapon Hammer Ballistic Gun Assault Rifle Impact Weapon Hammer Build | -11 -10 -9 -9 ------- Run | Scr Mat Mat Sto Slots Evolved 2 | . . 2 . Power . | . . . . Propulsion . | . . . . Utility . | . . . . Weapon 2 | . . 2 . Parts Attached 30 | 6 8 7 9 Power 2 | 1 . 1 . Engine 2 | 1 . 1 . Core . | . . . . Reactor . | . . . . Propulsion 12 | 2 2 3 5 Treads 10 | 2 2 3 3 Leg . | . . . . Wheel . | . . . . Hover . | . . . . Flight 2 | . . . 2 Utility 5 | 1 2 1 1 Device 1 | . 1 . . Storage 2 | 1 . 1 . Processor 1 | . 1 . . Hackware . | . . . . Protection 1 | . . . 1 Artifact . | . . . . Weapon 11 | 2 4 2 3 Energy Gun . | . . . . Energy Cannon . | . . . . Ballistic Gun 4 | 2 2 . . Ballistic Cannon . | . . . . Launcher . | . . . . Special Weapon . | . . . . Impact Weapon 7 | . 2 2 3 Slashing Weapon . | . . . . Piercing Weapon . | . . . . Special Melee Weapon . | . . . . Unidentified Prototypes 1 | . . . 1 Parts Lost 2 | . . . 2 Power 1 | . . . 1 Propulsion . | . . . . Utility 1 | . . . 1 Weapon . | . . . . Highest Loss Streak 1 | . . . 1 Average Slot Usage (%) 97 | . 95 100 97 Engine 11 | . 14 11 9 Treads 24 | . 28 22 21 Device 2 | . 5 . . Storage 12 | . 14 11 11 Processor 6 | . 5 11 6 Protection 1 | . . . 5 Ballistic Gun 10 | . 24 . . Impact Weapon 25 | . 2 44 43 Naked Turns . | . . . . Heaviest Build 26 | 12 13 23 26 Greatest Support 43 | 40 40 43 43 Greatest Overweight (x) 3 | . . . 3 Average Overweight (x) . | . . . . Largest Inventory Capacity 8 | 6 6 8 8 Average Capacity 7 | 5 6 7 8 Most Carried 8 | 3 6 5 8 Average Carried 3 | 1 2 4 5 Final Capacity 8 | 6 6 8 8 Final Carried 6 | 1 6 5 5 Class Distribution -------------------- 59% | Mutant 40% | Scavenger-Mutant Dominant Class ---------------- Mutant | -10/Materials Scavenger-Mutant | -9/Materials Scavenger-Mutant | -9/Storage Resources | -11 -10 -9 -9 ----------- Run | Scr Mat Mat Sto Matter Collected 608 | 191 213 56 148 Remotely . | . . . . Salvage Created 486 | . 165 56 265 Parts 23 | . 12 5 6 Haulers Intercepted 1 | . 1 . . Recyclers Shooed 2 | . . 1 1 Parts Field Recycled . | . . . . Retrieved Matter . | . . . . Parts Self-Destructed . | . . . . Prevented . | . . . . Kills | -11 -10 -9 -9 ------- Run | Scr Mat Mat Sto Combat Hostiles Destroyed 9 | . 4 1 4 Melee 4 | . . 1 3 Guns 4 | . 4 . . Classes Destroyed 5 | . 3 1 1 Hauler 1 | . 1 . . Recycler 1 | . . . 1 Swarmer 2 | . 2 . . Grunt 4 | . 2 . 2 Sentry 3 | . . 1 2 Best Kill Streak 3 | . 3 1 2 Combat Bots Only 2 | . 2 1 2 Max Kills in Single Turn 1 | . 1 1 1 Gunslinging . | . . . . Exploded . | . . . . Melee 1 | . . 1 1 Uniques/NPCs Destroyed . | . . . . Combat | -11 -10 -9 -9 -------- Run | Scr Mat Mat Sto Damage Taken 1194 | . 391 104 699 Core 147 | . 27 15 105 Absorbed by Shields . | . . . . Core Remaining (%) 94 | 100 89 . . Volleys Fired 27 | . 27 . . Largest 2 | . 2 . . Hottest 40 | . 40 . . Shots Fired 54 | . 54 . . Gun 54 | . 54 . . Cannon . | . . . . Launcher . | . . . . Special . | . . . . Kinetic 54 | . 54 . . Thermal . | . . . . Explosive . | . . . . Electromagnetic . | . . . . Robot Hit Streak 12 | . 12 . . Robot Miss Streak 3 | . 3 . . Penetration Max . | . . . . Secondary Targets 1 | . 1 . . Max Gunslinging Chain 1 | . 1 . . Shots Hit Robots 94 | . 35 5 54 Core Hits 22 | . 11 2 9 Critical Hits . | . . . . Critical Kills . | . . . . Critical Parts Destroyed . | . . . . Melee Attacks 70 | . . 6 64 Impact 70 | . . 6 64 Slashing . | . . . . Piercing . | . . . . Sneak Attacks 2 | . . 1 1 Combat Hostiles . | . . . . Follow-up Attacks 20 | . . 1 19 Damage Inflicted 1247 | . 321 73 853 Guns 321 | . 321 . . Cannons . | . . . . Explosions . | . . . . Melee 926 | . . 73 853 Ramming . | . . . . Kinetic 321 | . 321 . . Thermal . | . . . . Explosive . | . . . . Electromagnetic . | . . . . Impact 926 | . . 73 853 Slashing . | . . . . Piercing . | . . . . Highest Corruption . | . . . . Average Corruption . | . . . . Corruption Purged . | . . . . Overload Shots . | . . . . Overflow Damage 44 | . . . 44 Projectiles . | . . . . Explosions . | . . . . Melee 44 | . . . 44 Knockbacks 6 | . . . 6 Impact 6 | . . . 6 Kinetic . | . . . . Secondary . | . . . . Self-Inflicted Damage . | . . . . Shots . | . . . . Rammed . | . . . . Targets Rammed . | . . . . Kicked . | . . . . Crushed . | . . . . Highest Temperature 5 | . 5 . . Average Temperature 5 | . 5 . . Received Heat Transfer 441 | . 120 36 285 Siege Activations . | . . . . Robots Corrupted . | . . . . Combat Hostiles . | . . . . Parts Fried 2 | . . . 2 Impact Corruptions 4 | . . . 4 Robots Melted . | . . . . Combat Hostiles . | . . . . Parts Melted 2 | . . . 2 Heat Transferred . | . . . . Parts Sabotaged . | . . . . Parts Stolen . | . . . . Parts Stripped . | . . . . Power Chain Reactions . | . . . . Missiles Intercepted . | . . . . Alert | -11 -10 -9 -9 ------- Run | Scr Mat Mat Sto Peak Influence 159 | . 149 107 159 Initial 62 | . . 62 44 Average 74 | . 77 92 81 Maximum Alert Level . | . . . . Low Security (%) 100 | 100 100 100 100 Level 1 . | . . . . Level 2 . | . . . . Level 3 . | . . . . Level 4 . | . . . . Level 5 . | . . . . High Security . | . . . . Max Security . | . . . . Squads Dispatched 1 | . . . 1 Investigation 1 | . . . 1 Extermination . | . . . . Reinforcement . | . . . . Assault . | . . . . Garrison . | . . . . Intercept . | . . . . Construction Impeded . | . . . . Haulers Reinforced . | . . . . Stealth | -11 -10 -9 -9 --------- Run | Scr Mat Mat Sto Distress Signals 1 | . . . 1 Communications Jammed . | . . . . Distress Signals . | . . . . Times Spotted 17 | . 10 1 6 Peak Tracking Total 3 | . 3 1 3 Tactical Retreats . | . . . . Traps | -11 -10 -9 -9 ------- Run | Scr Mat Mat Sto Traps Triggered 2 | . . . 2 Indirectly . | . . . . Trap Hack Attempts . | . . . . Triggered . | . . . . Disarmed . | . . . . Reprogrammed . | . . . . Reused . | . . . . Traps Extracted . | . . . . Installed . | . . . . Triggered . | . . . . Machines | -11 -10 -9 -9 ---------- Run | Scr Mat Mat Sto Machines Disabled . | . . . . Max in Single Turn . | . . . . Machines Sabotaged . | . . . . Garrisons Compromised . | . . . . Overloaded Fab Kills . | . . . . Fab Network Shutdowns . | . . . . Hacking | -11 -10 -9 -9 --------- Run | Scr Mat Mat Sto Machines Accessed 5 | . 2 1 2 Terminals 5 | . 2 1 2 Fabricators . | . . . . Repair Stations . | . . . . Recycling Units . | . . . . Scanalyzers . | . . . . Garrison Access . | . . . . Total Hacks 12 | . 7 1 4 Successful 4 | . 2 1 1 Failed 8 | . 5 . 3 Catastrophic 2 | . . . 2 Database Lockouts . | . . . . Manual . | . . . . Terminals 12 | . 7 1 4 Fabricators . | . . . . Repair Stations . | . . . . Recycling Units . | . . . . Scanalyzers . | . . . . Garrison Access . | . . . . Terminal Hacks 4 | . 2 1 1 Prototype ID Bank 2 | . 1 1 . Open Door 1 | . . . 1 Registered Components 1 | . 1 . . Fabricator Hacks . | . . . . Repair Station Hacks . | . . . . Recycling Unit Hacks . | . . . . Scanalyzer . | . . . . Garrison Access Hacks . | . . . . Unauthorized Hacks . | . . . . Terminals . | . . . . Fabricators . | . . . . Repair Stations . | . . . . Recycling Units . | . . . . Scanalyzers . | . . . . Garrison Access . | . . . . Data Cores Recovered . | . . . . Used . | . . . . Hacking Detections 4 | . 2 1 1 Full Trace Events . | . . . . Feedback Events . | . . . . Feedback Blocked . | . . . . Robot Schematics Acquired . | . . . . Robots Built . | . . . . Matter . | . . . . Time . | . . . . Total Robot Build Rating . | . . . . Part Schematics Acquired . | . . . . Parts Built . | . . . . Matter . | . . . . Time . | . . . . Total Part Build Rating . | . . . . Parts Repaired . | . . . . Time . | . . . . Parts Recycled . | . . . . Recycled Matter . | . . . . Retrieved Matter . | . . . . Retrieved Components . | . . . . Parts Scanalyzed . | . . . . Part Schematics Acquired . | . . . . Parts Damaged . | . . . . Bothacking | -11 -10 -9 -9 ------------ Run | Scr Mat Mat Sto Used RIF Installer . | . . . . Robots Hacked . | . . . . Non-combat . | . . . . Combat . | . . . . Robot Hacks Applied . | . . . . Relay Couplers Released . | . . . . Robots Rewired . | . . . . Allies Hacked . | . . . . Hacks Repelled . | . . . . Allies | -11 -10 -9 -9 -------- Run | Scr Mat Mat Sto Total Allies . | . . . . Largest Group . | . . . . Highest-Rated Group . | . . . . Highest-Rated Ally . | . . . . Total Orders . | . . . . Ally Attacks . | . . . . Total Damage . | . . . . Kills . | . . . . Allies Corrupted . | . . . . Allies Melted . | . . . . Intel | -11 -10 -9 -9 ------- Run | Scr Mat Mat Sto Robot Analysis Total . | . . . . Derelict Logs Recovered . | . . . . Drone Launches . | . . . . Drone Recoveries . | . . . . Exploration | -11 -10 -9 -9 ------------- Run | Scr Mat Mat Sto Turns Passed 957 | 78 384 161 334 Spaces Moved 404 | 45 171 76 112 Core 5 | 5 . . . Treads 398 | 40 171 76 111 Legs . | . . . . Wheels . | . . . . Hover . | . . . . Flight 1 | . . . 1 Fastest Speed 50 | 50 160 160 160 Average Speed 158 | 147 160 160 160 Slowest Speed 245 | 160 160 160 245 Overloaded Moves . | . . . . Propulsion Burnouts . | . . . . Robots Hopped . | . . . . Cave-ins Triggered . | . . . . Exploration Rate (%) 16 | 5 35 9 18 Regions Visited 3 Branch Regions 1 Pre-discovered Areas . | . . . . Known Exits Taken . | . . . . Unknown Exits Taken 3 | 1 1 1 . Scrap Searched . | . . . . Spaces Dug . | . . . . Terrain Destroyed . | . . . . Melee . | . . . . Projectile . | . . . . AOE . | . . . . Terrain Rammed . | . . . . Walls Destroyed . | . . . . Machines Disabled . | . . . . Actions | -11 -10 -9 -9 --------- Run | Scr Mat Mat Sto Total 596 | 57 235 107 197 Wait 41 | . 10 13 18 Move 401 | 44 170 75 112 Hop . | . . . . Pick Up 30 | 7 13 4 6 Fast Attach . | . . . . Attach 21 | 6 6 3 6 Detach 3 | . . . 3 Swap 9 | . 2 4 3 Drop 15 | . 7 3 5 Fire 27 | . 27 . . Melee 49 | . . 5 44 Ram . | . . . . Kick . | . . . . Crush . | . . . . Escape Stasis . | . . . . Rewire . | . . . . Trap . | . . . . Miscellaneous . | . . . . Route ------- -11/Scrapyard -10/Materials -9/Materials -9/Storage History --------- Turn | Location | Event 43 | -11/Scrapyard | Discovered new exit (range 15) 79 | -11/Scrapyard | Entered Materials 348 | -10/Materials | Build established: Mutant 401 | -10/Materials | Discovered new exit (range 15) 463 | -10/Materials | Entered another Materials area 463 | -9/Materials | Evolved 2 slots: Weapon x2 494 | -9/Materials | Discovered new exit (range 10) 624 | -9/Materials | Entered Storage 827 | -9/Storage | Build established: Scavenger-Mutant 958 | -9/Storage | Self-destructed Last Messages --------------- 00864_ Acquired 33 matter. 00871_ Acquired 10 matter. 00872_ Dropped Lgt. Treads. 00879_ W-16 Scout sends out distress signal. 00901_ G-47 Trooper knocked back. 00915_ Imp. Ion Engine destroyed. 00922_ Hammer follow-up attack on G-47 Trooper. 00922_ G-47 Trooper knocked back. 00934_ Hammer follow-up attack on G-34 Mercenary. 00940_ Hammer follow-up attack on G-47 Trooper. 00940_ Destroyed Imp. Heat Sink. 00940_ G-47 Trooper system corrupted by crushing effect. 00941_ G-47 Trooper system terminally corrupted. 00941_ Lgt. Nuclear Core fried. 00944_ K-01 Serf collects debris. 00946_ Hammer follow-up attack on G-34 Mercenary. 00947_ K-01 Serf collects debris. 00952_ K-01 Serf cleans the Transfer Shaft. 00954_ Lgt. Armor Plating destroyed. 00955_ K-01 Serf collects debris. Map ----- +----------------------------------------------------+ | ?????????????????????????????????????????????????? | | ?????????????????????????????????????????????????? | | ?????????????????????????????????????????????????? | | ?????????????????????????????????????????????????? | | ?????????????????????????????????????????????????? | | ?????????????????????????????????????????????????? | | ?????????????????????????????????????????????????? | | ?????????????????????????????????????????????????? | | ?????????????????????????????????????????????????? | | ?????????????????????????????????????????????????? | | ?????????????????????????????????????????????????? | | ?????????????????????????????????????????????????? | | ?????????????????????????????????????????????????? | | ?????????????????????###?????????????????????????? | | ???????????????????? ?????????????????????????? | | ???????????????????? ?????????????????????????? | | ???????????????????? ?????????????????????????? | | ?????????????????#?## #????????????????????????? | | ????????????????? # ????????????????????????? | | ?????????????????? # ????????????????????????? | | ???????????????????+ ????????????????????????? | | ???????????????????# ????????????????????????? | | ???????????????????? ????????????????????????? | | ????????????????????# ###########??????????????? | | ????????????????????# #g ! /#??????????????? | | ????????????????????# #@ ##?????????????? | | ????????????????????# # ! "#?????????????? | | ????????????????????# %+ k T#?????????????? | | ????????????????????# # """k""" "#?????????????? | | ????????????????????# # """ """ ##?????????????? | | ????????????????????# # """ """ #####??????????? | | #???????????????????# # = ##==#??????????? | | ##################### #######+#### =#??????????? | | %=!% ## =#??????????? | | ##==##?????????? | | + T#?????????? | | ##################+####### # ##?????????? | | ##??????????# # #####??????????? | | ????????????# + #??????????????? | | ????????????# #########??????????????? | | ????????????# #??????????????????????? | | ????????????# #??????????????????????? | | ????????????# #??????????????????????? | | ????????????###############??????????????????????? | | | | | | | | | | | | | +----------------------------------------------------+ Best States ------------- Heat Dissipation 35 Energy Generation 12 Energy Capacity 265 Matter Stores 300 Matter Capacity 300 Sight Range 16 Terrain Scan Density 10 Armor Coverage 150 Evasion (%) 40 Recoil Reduction 2 Item Schematics ----------------- None Robot Schematics ------------------ None Fabricated ------------ Nothing Alien Tech Used ----------------- None Achievements -------------- None Challenges ------------ None Game ------ Seed MakeshiftPrecisionShielding Manual? 0 Play Time 00:11:45 Cumulative 9.7 hours Start 2021.11.27 @ 14:26:48 End 2021.11.27 @ 14:37:41 Sessions 1 Manual Loads 0 Difficulty Rogue Special Mode None Game No. 17 Rogue 17 Adventurer 0 Explorer 0 Win Type - Total 0 Types 0/0/0/0/0/0/0/0/0 Lore% 7 Gallery% 16 Achievement% 12 Wizard Run 0 Options --------- ASCII 0 Keyboard 0 Movement Mouse Keybinds 0 Fullscreen 2 Font 24/Smallcaps Map View 76x50 Tactical HUD 1 Map Filters NONE Filters NONE Steam 1 RUN: 0aaa66ab-9733-490a-a621-d01729091f1a